[Event "26th OIBM 2023"]
[Site "Gmund am Tegernsee"]
[Date "2023.11.01"]
[Round "5.26"]
[White "Liepold, Stefan"]
[Black "Schuster, Karsten"]
[Result "1-0"]
[ECO "B12"]
[WhiteElo "2150"]
[BlackElo "2309"]
[Annotator "ChessBase"]
[PlyCount "93"]
[EventDate "2023.10.04"]
[EventType "swiss"]
[EventCountry "GER"]
[SourceTitle "playchess.com"]
[Source "ChessBase"]
[SourceQuality "1"]
[TimeControl "40/5400+30:1800+30"]

1. e4 {[%emt 0:00:05]} c6 {[%emt 0:00:04]} 2. d4 {[%emt 0:00:12]} d5 {[%emt 0:00:07]} 3. e5 {[%emt 0:00:19]} Bf5 {[%emt 0:00:16]} 4. h4 {[%emt 0:00:22]} h5 {[%emt 0:00:26]} 5. Bd3 {[%emt 0:00:33]} Bxd3 {[%emt 0:00:12]} 6. Qxd3 {[%emt 0:00:09]} Qa5+ {[%emt 0:01:22]} 7. b4 {[%emt 0:12:33]} Qa6 {[%emt 0:00:14]} 8. Qd2 {[%emt 0:04:40]} e6 {[%emt 0:00:43]} 9. Ne2 {[%emt 0:01:43]} Ne7 {[%emt 0:02:35]} 10. Nbc3 {[%emt 0:08:14]} Nf5 {[%emt 0:04:47]} 11. Rb1 {[%emt 0:01:54]} Qc4 {[%emt 0:11:47]} 12. a3 {[%emt 0:04:41]} Nd7 {[%emt 0:03:46]} 13. Nd1 {[%emt 0:08:47]} f6 {[%emt 0:19:39]} 14. exf6 {[%emt 0:24:08]} gxf6 {[%emt 0:01:40]} 15. Qd3 {[%emt 0:02:30]} Qxd3 {[%emt 0:03:18]} 16. cxd3 {[%emt 0:00:06]} Bd6 {[%emt 0:01:16]} 17. Ne3 {[%emt 0:02:22]} Nxe3 {[%emt 0:04:39]} 18. Bxe3 {[%emt 0:03:40]} Kf7 {[%emt 0:06:07]} 19. g3 {[%emt 0:04:28]} b5 {[%emt 0:08:48]} 20. O-O {[%emt 0:05:52]} a5 {[%emt 0:00:26]} 21. Rfc1 {[%emt 0:00:34]} Rhc8 {[%emt 0:01:44]} 22. Bd2 {[%emt 0:00:13]} axb4 {[%emt 0:02:01]} 23. Bxb4 {[%emt 0:00:10]} Bxb4 {[%emt 0:00:07]} 24. axb4 {[%emt 0:00:07]} Ra3 {[%emt 0:08:46]} 25. Ra1 {[%emt 0:08:14]} Rxd3 {[%emt 0:01:28]} 26. Ra7 {[%emt 0:00:05]} Ke7 {[%emt 0:00:58]} 27. Re1 {[%emt 0:02:31]} Rf3 {[%emt 0:09:37]} 28. Nf4 {[%emt 0:01:49]} Rxf4 {[%emt 0:00:33]} 29. gxf4 {[%emt 0:00:04]} Rg8+ {[%emt 0:00:56]} 30. Kf1 {[%emt 0:00:07]} Kd6 {[%emt 0:00:53]} 31. Re3 {[%emt 0:01:01]} Rg4 {[%emt 0:02:27]} 32. Rg3 {[%emt 0:00:17]} Rxg3 {[%emt 0:01:12]} 33. fxg3 {[%emt 0:00:04]} f5 {[%emt 0:00:04]} 34. Ke2 {[%emt 0:00:34]} Ke7 {[%emt 0:01:26]} 35. Ke3 {[%emt 0:00:46]} Kd8 {[%emt 0:00:13]} 36. Ra8+ {[%emt 0:00:50]} Ke7 {[%emt 0:00:04]} 37. Ra7 {[%emt 0:00:09]} Kd8 {[%emt 0:00:05]} 38. Ra8+ {[%emt 0:00:05]} Ke7 {[%emt 0:00:02]} 39. Kf3 {[%emt 0:01:00]} Nf6 {[%emt 0:00:12]} 40. Ra7+ {[%emt 0:02:38]} Kd8 {[%emt 0:00:37]} 41. Rf7 {[%emt 0:31:51]} Ne4 {[%emt 0:07:37]} 42. Ke3 {[%emt 0:00:00]} Nxg3 {[%emt 0:09:42]} 43. Rh7 {[%emt 0:00:00]} Ne4 {[%emt 0:05:40]} 44. Rxh5 {[%emt 0:00:00]} Ke7 {[%emt 0:00:06]} 45. Rh7+ {[%emt 0:00:00]} Kf6 {[%emt 0:00:04]} 46. Rc7 {[%emt 0:00:00]} Nc3 {[%emt 0:00:02]} 47. h5 {[%emt 0:00:00]} 1-0

[Event "26th OIBM 2023"]
[Site "Gmund am Tegernsee"]
[Date "2023.11.01"]
[Round "5.27"]
[White "Solomon, Kenny"]
[Black "Hofmann, Lorenz"]
[Result "1/2-1/2"]
[ECO "B12"]
[WhiteElo "2300"]
[BlackElo "2091"]
[Annotator "ChessBase"]
[PlyCount "64"]
[EventDate "2023.10.04"]
[EventType "swiss"]
[EventCountry "GER"]
[SourceTitle "playchess.com"]
[Source "ChessBase"]
[SourceQuality "1"]
[TimeControl "40/5400+30:1800+30"]

1. e4 {[%emt 0:00:03]} c6 {[%emt 0:00:03]} 2. d4 {[%emt 0:00:12]} d5 {[%emt 0:00:04]} 3. e5 {[%emt 0:00:07]} c5 {[%emt 0:00:04]} 4. dxc5 {[%emt 0:00:09]} e6 {[%emt 0:00:04]} 5. a3 {[%emt 0:00:10]} Bxc5 {[%emt 0:00:08]} 6. Nf3 {[%emt 0:00:09]} a5 {[%emt 0:07:19]} 7. Bd3 {[%emt 0:02:46]} Ne7 {[%emt 0:00:45]} 8. O-O {[%emt 0:01:50]} Nbc6 {[%emt 0:01:38]} 9. Nc3 {[%emt 0:13:16]} Ng6 {[%emt 0:08:18]} 10. Re1 {[%emt 0:07:53]} O-O {[%emt 0:07:04]} 11. Bg5 {[%emt 0:22:54]} f6 {[%emt 0:15:28]} 12. exf6 {[%emt 0:00:05]} gxf6 {[%emt 0:00:03]} 13. Bh6 {[%emt 0:00:04]} Re8 {[%emt 0:01:08]} 14. h4 {[%emt 0:08:48]} Bf8 {[%emt 0:07:13]} 15. Qd2 {[%emt 0:15:15]} Nge5 {[%emt 0:17:13]} 16. Nxe5 {[%emt 0:00:56]} fxe5 {[%emt 0:13:53]} 17. Re3 {[%emt 0:09:28]} e4 {[%emt 0:06:18]} 18. Rg3+ {[%emt 0:00:37]} Kh8 {[%emt 0:00:15]} 19. Bg5 {[%emt 0:00:36]} Be7 {[%emt 0:00:17]} 20. Bb5 {[%emt 0:00:46]} Bxg5 {[%emt 0:05:49]} 21. hxg5 {[%emt 0:00:57]} Rg8 {[%emt 0:00:21]} 22. Bxc6 {[%emt 0:01:31]} bxc6 {[%emt 0:00:04]} 23. Qd4+ {[%emt 0:00:06]} Rg7 {[%emt 0:00:04]} 24. g6 {[%emt 0:04:23]} Qc7 {[%emt 0:01:41]} 25. Qf6 {[%emt 0:02:37]} Qe7 {[%emt 0:00:03]} 26. Qe5 {[%emt 0:00:01]} hxg6 {[%emt 0:00:45]} 27. Rxg6 {[%emt 0:01:01]} Kg8 {[%emt 0:00:01]} 28. Rf6 {[%emt 0:02:06]} Bd7 {[%emt 0:00:29]} 29. Re1 {[%emt 0:02:01]} Rf8 {[%emt 0:00:36]} 30. Rxf8+ {[%emt 0:00:01]} Kxf8 {[%emt 0:00:05]} 31. Qf4+ {[%emt 0:01:33]} Ke8 {[%emt 0:00:07]} 32. Qb8+ {[%emt 0:01:31]} Qd8 {[%emt 0:00:06]} 1/2-1/2

[Event "26th OIBM 2023"]
[Site "Gmund am Tegernsee"]
[Date "2023.11.01"]
[Round "5.28"]
[White "Ammon, Tobias"]
[Black "Hrebenshchykova, Yelyzaveta"]
[Result "1-0"]
[ECO "C47"]
[WhiteElo "2145"]
[BlackElo "2299"]
[Annotator "ChessBase"]
[PlyCount "89"]
[EventDate "2023.10.04"]
[EventType "swiss"]
[EventCountry "GER"]
[SourceTitle "playchess.com"]
[Source "ChessBase"]
[SourceQuality "1"]
[TimeControl "40/5400+30:1800+30"]

1. e4 {[%emt 0:00:39]} e5 {[%emt 0:00:07]} 2. Nf3 {[%emt 0:00:12]} Nc6 {[%emt 0:00:05]} 3. d4 {[%emt 0:00:06]} exd4 {[%emt 0:00:05]} 4. Nxd4 {[%emt 0:00:03]} Nf6 {[%emt 0:00:22]} 5. Nc3 {[%emt 0:01:00]} Bb4 {[%emt 0:01:12]} 6. Nxc6 {[%emt 0:00:16]} bxc6 {[%emt 0:00:04]} 7. Bd3 {[%emt 0:00:16]} O-O {[%emt 0:00:21]} 8. O-O {[%emt 0:00:12]} d5 {[%emt 0:00:11]} 9. exd5 {[%emt 0:00:31]} cxd5 {[%emt 0:00:05]} 10. h3 {[%emt 0:01:04]} c6 {[%emt 0:10:33]} 11. Qf3 {[%emt 0:02:12]} h6 {[%emt 0:15:17]} 12. Bf4 {[%emt 0:11:51]} Re8 {[%emt 0:05:03]} 13. Rfd1 {[%emt 0:02:46]} a5 {[%emt 0:07:50]} 14. Na4 {[%emt 0:07:58]} Be6 {[%emt 0:08:50]} 15. c4 {[%emt 0:10:06]} Nd7 {[%emt 0:08:50]} 16. Rac1 {[%emt 0:07:31]} Bf8 {[%emt 0:05:49]} 17. Qg3 {[%emt 0:07:00]} Qf6 {[%emt 0:01:51]} 18. cxd5 {[%emt 0:02:24]} Bxd5 {[%emt 0:10:59]} 19. Nc3 {[%emt 0:01:35]} Nb6 {[%emt 0:00:25]} 20. Be3 {[%emt 0:04:02]} Bd6 {[%emt 0:00:42]} 21. Qg4 {[%emt 0:09:01]} Rab8 {[%emt 0:10:45]} 22. Ne4 {[%emt 0:08:08]} Bxe4 {[%emt 0:04:32]} 23. Bxe4 {[%emt 0:00:06]} c5 {[%emt 0:00:02]} 24. Qf5 {[%emt 0:15:17]} Qxf5 {[%emt 0:02:09]} 25. Bxf5 {[%emt 0:00:02]} Bf8 {[%emt 0:00:19]} 26. Bxc5 {[%emt 0:02:32]} Re5 {[%emt 0:00:31]} 27. Bxf8 {[%emt 0:00:29]} Kxf8 {[%emt 0:00:07]} 28. Bd3 {[%emt 0:01:40]} a4 {[%emt 0:03:11]} 29. Rc7 {[%emt 0:02:05]} Rd8 {[%emt 0:01:53]} 30. Rcc1 {[%emt 0:01:49]} a3 {[%emt 0:01:35]} 31. bxa3 {[%emt 0:00:34]} Ra5 {[%emt 0:00:30]} 32. Bc2 {[%emt 0:00:57]} Rxd1+ {[%emt 0:00:36]} 33. Bxd1 {[%emt 0:00:36]} Rxa3 {[%emt 0:00:13]} 34. Bb3 {[%emt 0:00:08]} Ra7 {[%emt 0:00:15]} 35. Rc6 {[%emt 0:00:44]} Nd7 {[%emt 0:00:17]} 36. Kf1 {[%emt 0:00:47]} Ke7 {[%emt 0:00:30]} 37. Ke2 {[%emt 0:00:43]} Ra5 {[%emt 0:00:54]} 38. f4 {[%emt 0:01:06]} h5 {[%emt 0:00:59]} 39. h4 {[%emt 0:00:37]} f6 {[%emt 0:01:19]} 40. Ke3 {[%emt 0:00:48]} g5 {[%emt 0:00:25]} 41. g3 {[%emt 0:04:29]} gxh4 {[%emt 0:03:33]} 42. gxh4 {[%emt 0:00:05]} Rb5 {[%emt 0:01:42]} 43. Re6+ {[%emt 0:01:41]} Kd8 {[%emt 0:00:28]} 44. Rd6 {[%emt 0:05:25]} Ra5 {[%emt 0:01:57]} 45. Rd5 {[%emt 0:00:34]} 1-0

[Event "26th OIBM 2023"]
[Site "Gmund am Tegernsee"]
[Date "2023.11.01"]
[Round "5.29"]
[White "Manukonda Arun"]
[Black "Schneider, Jana"]
[Result "0-1"]
[ECO "D38"]
[WhiteElo "2143"]
[BlackElo "2285"]
[Annotator "ChessBase"]
[PlyCount "102"]
[EventDate "2023.10.04"]
[EventType "swiss"]
[EventCountry "GER"]
[SourceTitle "playchess.com"]
[Source "ChessBase"]
[SourceQuality "1"]
[TimeControl "40/5400+30:1800+30"]

1. d4 {[%emt 0:00:17]} Nf6 {[%emt 0:00:26]} 2. c4 {[%emt 0:00:08]} e6 {[%emt 0:00:05]} 3. Nc3 {[%emt 0:00:04]} d5 {[%emt 0:00:07]} 4. Nf3 {[%emt 0:00:14]} Bb4 {[%emt 0:01:00]} 5. Qa4+ {[%emt 0:00:12]} Nc6 {[%emt 0:00:09]} 6. e3 {[%emt 0:00:17]} O-O {[%emt 0:00:20]} 7. Qc2 {[%emt 0:00:05]} dxc4 {[%emt 0:01:52]} 8. Bxc4 {[%emt 0:00:15]} Bd6 {[%emt 0:00:33]} 9. a3 {[%emt 0:01:41]} e5 {[%emt 0:02:15]} 10. dxe5 {[%emt 0:06:43]} Nxe5 {[%emt 0:04:18]} 11. Nxe5 {[%emt 0:01:57]} Bxe5 {[%emt 0:00:11]} 12. Bd2 {[%emt 0:00:13]} Re8 {[%emt 0:12:03]} 13. O-O-O {[%emt 0:06:24]} Qe7 {[%emt 0:06:32]} 14. Rhe1 {[%emt 0:18:32]} Be6 {[%emt 0:03:11]} 15. Bd3 {[%emt 0:09:58]} c5 {[%emt 0:03:57]} 16. f4 {[%emt 0:02:04]} c4 {[%emt 0:01:45]} 17. Be2 {[%emt 0:11:28]} Bxc3 {[%emt 0:00:32]} 18. Bxc3 {[%emt 0:00:19]} Nd5 {[%emt 0:00:12]} 19. Bf3 {[%emt 0:03:01]} Nxc3 {[%emt 0:08:16]} 20. Qxc3 {[%emt 0:02:02]} Rac8 {[%emt 0:00:47]} 21. e4 {[%emt 0:01:09]} b5 {[%emt 0:04:50]} 22. f5 {[%emt 0:13:47]} Bd7 {[%emt 0:00:27]} 23. Qb4 {[%emt 0:05:41]} f6 {[%emt 0:05:17]} 24. Qxe7 {[%emt 0:04:12]} Rxe7 {[%emt 0:00:03]} 25. g4 {[%emt 0:00:34]} Bc6 {[%emt 0:04:36]} 26. Rd6 {[%emt 0:02:13]} Bb7 {[%emt 0:02:08]} 27. Kd2 {[%emt 0:00:43]} Rce8 {[%emt 0:01:54]} 28. Rd4 {[%emt 0:00:19]} Rc7 {[%emt 0:02:55]} 29. Rc1 {[%emt 0:01:21]} Ree7 {[%emt 0:01:36]} 30. Kc3 {[%emt 0:01:48]} a5 {[%emt 0:01:15]} 31. h4 {[%emt 0:00:54]} g6 {[%emt 0:05:59]} 32. Rcd1 {[%emt 0:01:40]} Kg7 {[%emt 0:02:08]} 33. Rg1 {[%emt 0:02:08]} Re5 {[%emt 0:04:00]} 34. Rgd1 {[%emt 0:00:25]} Bc6 {[%emt 0:04:12]} 35. Re1 {[%emt 0:03:05]} Rce7 {[%emt 0:05:50]} 36. Kd2 {[%emt 0:01:33]} Rc5 {[%emt 0:03:59]} 37. Rd6 {[%emt 0:00:28]} Kf7 {[%emt 0:01:22]} 38. g5 {[%emt 0:00:15]} Rd7 {[%emt 0:02:10]} 39. Rxd7+ {[%emt 0:00:13]} Bxd7 {[%emt 0:00:01]} 40. fxg6+ {[%emt 0:01:12]} hxg6 {[%emt 0:03:28]} 41. gxf6 {[%emt 0:30:15]} Kxf6 {[%emt 0:31:18]} 42. Kc3 {[%emt 0:00:41]} Ke5 {[%emt 0:02:47]} 43. Rg1 {[%emt 0:00:00]} Kf4 {[%emt 0:00:00]} 44. Bd1 {[%emt 0:00:00]} Rc6 {[%emt 0:00:00]} 45. Rg5 {[%emt 0:00:00]} Re6 {[%emt 0:00:00]} 46. Kd4 {[%emt 0:00:00]} Rxe4+ {[%emt 0:00:00]} 47. Kd5 {[%emt 0:00:00]} Bf5 {[%emt 0:00:00]} 48. Kc5 {[%emt 0:00:00]} Re1 {[%emt 0:00:00]} 49. Bh5 {[%emt 0:00:00]} Re5+ {[%emt 0:00:00]} 50. Kb6 {[%emt 0:00:00]} gxh5 {[%emt 0:00:00]} 51. Rxh5 {[%emt 0:00:00]} b4 {[%emt 0:00:00]} 0-1

[Event "26th OIBM 2023"]
[Site "Gmund am Tegernsee"]
[Date "2023.11.01"]
[Round "5.30"]
[White "Nagel, Bernhard"]
[Black "Cherniaiev, Tykhon"]
[Result "0-1"]
[ECO "A39"]
[WhiteElo "2142"]
[BlackElo "2278"]
[Annotator "ChessBase"]
[PlyCount "122"]
[EventDate "2023.10.04"]
[EventType "swiss"]
[EventCountry "GER"]
[SourceTitle "playchess.com"]
[Source "ChessBase"]
[SourceQuality "1"]
[TimeControl "40/5400+30:1800+30"]

1. c4 {[%emt 0:00:04]} c5 {[%emt 0:00:10]} 2. Nf3 {[%emt 0:00:16]} Nf6 {[%emt 0:00:05]} 3. g3 {[%emt 0:00:23]} g6 {[%emt 0:00:06]} 4. Bg2 {[%emt 0:00:26]} Bg7 {[%emt 0:00:07]} 5. Nc3 {[%emt 0:00:15]} Nc6 {[%emt 0:00:07]} 6. d4 {[%emt 0:02:00]} cxd4 {[%emt 0:00:11]} 7. Nxd4 {[%emt 0:00:11]} O-O {[%emt 0:00:10]} 8. O-O {[%emt 0:01:07]} Qa5 {[%emt 0:00:09]} 9. e3 {[%emt 0:02:42]} d6 {[%emt 0:00:13]} 10. Bd2 {[%emt 0:07:06]} Qb6 {[%emt 0:00:22]} 11. Nxc6 {[%emt 0:06:01]} bxc6 {[%emt 0:00:07]} 12. b3 {[%emt 0:00:14]} Bb7 {[%emt 0:00:34]} 13. Rc1 {[%emt 0:00:31]} Nd7 {[%emt 0:00:29]} 14. Na4 {[%emt 0:00:33]} Qc7 {[%emt 0:00:27]} 15. Bc3 {[%emt 0:02:50]} c5 {[%emt 0:09:01]} 16. Bxg7 {[%emt 0:02:13]} Kxg7 {[%emt 0:01:17]} 17. Nc3 {[%emt 0:02:26]} a5 {[%emt 0:04:57]} 18. f4 {[%emt 0:11:55]} Bxg2 {[%emt 0:17:30]} 19. Kxg2 {[%emt 0:00:07]} f5 {[%emt 0:01:13]} 20. Qf3 {[%emt 0:04:34]} Nf6 {[%emt 0:04:27]} 21. Rfe1 {[%emt 0:02:45]} Rae8 {[%emt 0:03:21]} 22. Rcd1 {[%emt 0:03:39]} Qd7 {[%emt 0:01:26]} 23. Rd2 {[%emt 0:06:18]} Rf7 {[%emt 0:14:30]} 24. e4 {[%emt 0:15:13]} fxe4 {[%emt 0:00:51]} 25. Nxe4 {[%emt 0:00:06]} Nxe4 {[%emt 0:00:09]} 26. Rxe4 {[%emt 0:00:26]} a4 {[%emt 0:00:46]} 27. Rde2 {[%emt 0:11:07]} axb3 {[%emt 0:00:13]} 28. axb3 {[%emt 0:00:11]} Qb7 {[%emt 0:02:38]} 29. R4e3 {[%emt 0:01:46]} Rb8 {[%emt 0:01:18]} 30. Kf2 {[%emt 0:01:07]} Qxf3+ {[%emt 0:00:44]} 31. Kxf3 {[%emt 0:00:23]} e5 {[%emt 0:02:40]} 32. Rd2 {[%emt 0:02:44]} exf4 {[%emt 0:00:58]} 33. gxf4 {[%emt 0:00:11]} Rf6 {[%emt 0:02:37]} 34. Kg3 {[%emt 0:03:03]} Rb7 {[%emt 0:02:23]} 35. Red3 {[%emt 0:01:13]} Rb6 {[%emt 0:00:52]} 36. Ra2 {[%emt 0:00:17]} Rf7 {[%emt 0:00:24]} 37. Rad2 {[%emt 0:06:06]} Rfb7 {[%emt 0:01:10]} 38. Rxd6 {[%emt 0:01:37]} Rxd6 {[%emt 0:00:44]} 39. Rxd6 {[%emt 0:00:07]} Rxb3+ {[%emt 0:00:05]} 40. Kg4 {[%emt 0:00:27]} Rc3 {[%emt 0:00:29]} 41. Rd7+ {[%emt 0:32:01]} Kh6 {[%emt 0:30:18]} 42. Rc7 {[%emt 0:00:15]} Rxc4 {[%emt 0:00:06]} 43. Rc6 {[%emt 0:04:06]} Rc1 {[%emt 0:00:38]} 44. f5 {[%emt 0:00:00]} Rc4+ {[%emt 0:00:00]} 45. Kg3 {[%emt 0:00:00]} Kg7 {[%emt 0:00:00]} 46. fxg6 {[%emt 0:00:00]} hxg6 {[%emt 0:00:00]} 47. Kf3 {[%emt 0:00:00]} Kh6 {[%emt 0:00:00]} 48. Kg3 {[%emt 0:00:00]} Kg5 {[%emt 0:00:00]} 49. Rc8 {[%emt 0:00:00]} Rc3+ {[%emt 0:00:00]} 50. Kg2 {[%emt 0:00:00]} Kf4 {[%emt 0:00:00]} 51. Rc7 {[%emt 0:00:00]} c4 {[%emt 0:00:00]} 52. Rc8 {[%emt 0:00:00]} g5 {[%emt 0:00:00]} 53. Rc7 {[%emt 0:00:00]} Rc2+ {[%emt 0:00:00]} 54. Kg1 {[%emt 0:00:00]} c3 {[%emt 0:00:00]} 55. Rc8 {[%emt 0:00:00]} Ke3 {[%emt 0:00:00]} 56. Re8+ {[%emt 0:00:08]} Kd2 {[%emt 0:00:00]} 57. Rd8+ {[%emt 0:02:58]} Ke1 {[%emt 0:00:00]} 58. Rd3 {[%emt 0:01:11]} Ke2 {[%emt 0:00:00]} 59. Rd5 {[%emt 0:01:54]} Rd2 {[%emt 0:00:00]} 60. Rxg5 {[%emt 0:00:36]} c2 {[%emt 0:00:00]} 61. Rc5 {[%emt 0:00:05]} Kd1 {[%emt 0:00:00]} 0-1

[Event "26th OIBM 2023"]
[Site "Gmund am Tegernsee"]
[Date "2023.11.01"]
[Round "5.31"]
[White "Mueller, Elias"]
[Black "Dalinger, Valeri"]
[Result "1-0"]
[ECO "C26"]
[WhiteElo "2015"]
[BlackElo "2269"]
[Annotator "ChessBase"]
[PlyCount "127"]
[EventDate "2023.10.04"]
[EventType "swiss"]
[EventCountry "GER"]
[SourceTitle "playchess.com"]
[Source "ChessBase"]
[SourceQuality "1"]
[TimeControl "40/5400+30:1800+30"]

1. e4 {[%emt 0:00:05]} e5 {[%emt 0:00:03]} 2. Nc3 {[%emt 0:00:14]} Nc6 {[%emt 0:00:27]} 3. g3 {[%emt 0:00:25]} Nf6 {[%emt 0:00:30]} 4. Bg2 {[%emt 0:00:16]} Bc5 {[%emt 0:00:22]} 5. Nge2 {[%emt 0:02:28]} O-O {[%emt 0:00:37]} 6. O-O {[%emt 0:01:08]} a6 {[%emt 0:00:21]} 7. d3 {[%emt 0:03:45]} d6 {[%emt 0:00:54]} 8. h3 {[%emt 0:01:30]} Be6 {[%emt 0:02:16]} 9. Nd5 {[%emt 0:02:58]} Ne8 {[%emt 0:03:04]} 10. c3 {[%emt 0:10:53]} f5 {[%emt 0:02:09]} 11. exf5 {[%emt 0:10:29]} Bxf5 {[%emt 0:00:52]} 12. Ne3 {[%emt 0:00:27]} Rb8 {[%emt 0:10:22]} 13. Nxf5 {[%emt 0:04:10]} Rxf5 {[%emt 0:00:04]} 14. Qc2 {[%emt 0:11:38]} Rf8 {[%emt 0:02:51]} 15. d4 {[%emt 0:01:06]} Bb6 {[%emt 0:01:36]} 16. Be3 {[%emt 0:02:20]} exd4 {[%emt 0:03:38]} 17. cxd4 {[%emt 0:03:51]} Qd7 {[%emt 0:11:28]} 18. Nf4 {[%emt 0:09:26]} Nd8 {[%emt 0:01:02]} 19. Bd2 {[%emt 0:01:54]} Nf6 {[%emt 0:03:06]} 20. d5 {[%emt 0:02:12]} Nf7 {[%emt 0:01:07]} 21. Ne6 {[%emt 0:01:55]} Rfe8 {[%emt 0:00:44]} 22. Bc3 {[%emt 0:04:08]} Ne5 {[%emt 0:00:18]} 23. Qf5 {[%emt 0:01:39]} c6 {[%emt 0:01:30]} 24. Rae1 {[%emt 0:06:49]} Nxd5 {[%emt 0:09:36]} 25. Bxd5 {[%emt 0:02:12]} cxd5 {[%emt 0:00:03]} 26. Bxe5 {[%emt 0:02:43]} Qxe6 {[%emt 0:01:47]} 27. Qxe6+ {[%emt 0:00:55]} Rxe6 {[%emt 0:00:03]} 28. Bf4 {[%emt 0:02:10]} Rbe8 {[%emt 0:00:45]} 29. Rd1 {[%emt 0:00:47]} d4 {[%emt 0:00:21]} 30. Rd2 {[%emt 0:00:45]} h6 {[%emt 0:00:58]} 31. g4 {[%emt 0:00:43]} Kf7 {[%emt 0:00:37]} 32. Kg2 {[%emt 0:00:28]} d5 {[%emt 0:00:40]} 33. Rfd1 {[%emt 0:02:03]} Re4 {[%emt 0:05:12]} 34. Bg3 {[%emt 0:00:50]} R8e6 {[%emt 0:02:14]} 35. b3 {[%emt 0:02:08]} Ke8 {[%emt 0:01:20]} 36. Rd3 {[%emt 0:03:03]} Kd7 {[%emt 0:01:20]} 37. R1d2 {[%emt 0:00:59]} Ba5 {[%emt 0:05:37]} 38. Rd1 {[%emt 0:00:23]} Bc3 {[%emt 0:00:13]} 39. f4 {[%emt 0:02:03]} Re2+ {[%emt 0:00:32]} 40. Kf3 {[%emt 0:00:28]} Rxa2 {[%emt 0:05:25]} 41. f5 {[%emt 0:32:02]} Re4 {[%emt 0:30:44]} 42. Rxc3 {[%emt 0:00:00]} dxc3 {[%emt 0:00:00]} 43. Rxd5+ {[%emt 0:00:00]} Kc6 {[%emt 0:00:00]} 44. Rd6+ {[%emt 0:00:00]} Kc5 {[%emt 0:00:00]} 45. Kxe4 {[%emt 0:00:00]} Rd2 {[%emt 0:00:00]} 46. Rg6 {[%emt 0:00:00]} Rd7 {[%emt 0:00:00]} 47. Be5 {[%emt 0:00:00]} c2 {[%emt 0:00:00]} 48. Bb2 {[%emt 0:00:00]} Kb4 {[%emt 0:00:00]} 49. Rb6+ {[%emt 0:00:00]} Ka5 {[%emt 0:00:00]} 50. Re6 {[%emt 0:00:00]} Kb4 {[%emt 0:00:00]} 51. f6 {[%emt 0:00:00]} gxf6 {[%emt 0:00:00]} 52. Rb6+ {[%emt 0:00:00]} Ka5 {[%emt 0:00:00]} 53. Rxf6 {[%emt 0:00:00]} Rd1 {[%emt 0:00:00]} 54. Rxh6 {[%emt 0:00:00]} c1=Q {[%emt 0:30:42]} 55. Bxc1 {[%emt 0:00:00]} Rxc1 {[%emt 0:00:00]} 56. g5 {[%emt 0:00:00]} Rg1 {[%emt 0:01:00]} 57. h4 {[%emt 0:08:32]} b5 {[%emt 0:00:00]} 58. Kf5 {[%emt 0:00:00]} Kb4 {[%emt 0:00:00]} 59. Rxa6 {[%emt 0:00:00]} Kxb3 {[%emt 0:00:00]} 60. h5 {[%emt 0:00:00]} b4 {[%emt 0:00:00]} 61. h6 {[%emt 0:00:00]} Kc2 {[%emt 0:00:00]} 62. h7 {[%emt 0:00:00]} Rh1 {[%emt 0:00:00]} 63. Rh6 {[%emt 0:00:00]} Rf1+ {[%emt 0:00:00]} 64. Ke4 {[%emt 0:03:30]} 1-0

[Event "26th OIBM 2023"]
[Site "Gmund am Tegernsee"]
[Date "2023.11.01"]
[Round "5.32"]
[White "Ehrke, Michael"]
[Black "Galioglu, Cem"]
[Result "0-1"]
[ECO "D00"]
[WhiteElo "2156"]
[BlackElo "1921"]
[Annotator "ChessBase"]
[PlyCount "84"]
[EventDate "2023.10.04"]
[EventType "swiss"]
[EventCountry "GER"]
[SourceTitle "playchess.com"]
[Source "ChessBase"]
[SourceQuality "1"]
[TimeControl "40/5400+30:1800+30"]

1. d4 {[%emt 0:00:03]} d5 {[%emt 0:02:08]} 2. Bf4 {[%emt 0:00:28]} c5 {[%emt 0:00:52]} 3. e3 {[%emt 0:00:29]} Nc6 {[%emt 0:00:04]} 4. c3 {[%emt 0:00:34]} Bf5 {[%emt 0:00:06]} 5. Nd2 {[%emt 0:00:53]} e6 {[%emt 0:00:05]} 6. Ngf3 {[%emt 0:01:49]} Qb6 {[%emt 0:00:26]} 7. Qb3 {[%emt 0:04:40]} c4 {[%emt 0:00:06]} 8. Qxb6 {[%emt 0:00:05]} axb6 {[%emt 0:00:04]} 9. a3 {[%emt 0:00:11]} b5 {[%emt 0:00:29]} 10. Rc1 {[%emt 0:01:14]} Nf6 {[%emt 0:06:45]} 11. Nh4 {[%emt 0:02:27]} Be4 {[%emt 0:02:46]} 12. f3 {[%emt 0:01:05]} Bd3 {[%emt 0:00:04]} 13. Bxd3 {[%emt 0:00:54]} cxd3 {[%emt 0:00:10]} 14. g4 {[%emt 0:01:37]} h6 {[%emt 0:00:12]} 15. Ng2 {[%emt 0:08:23]} g5 {[%emt 0:00:09]} 16. Bg3 {[%emt 0:22:19]} h5 {[%emt 0:00:34]} 17. gxh5 {[%emt 0:00:26]} Nxh5 {[%emt 0:00:09]} 18. Kf2 {[%emt 0:01:10]} Na5 {[%emt 0:00:22]} 19. Rhd1 {[%emt 0:02:35]} Nxg3 {[%emt 0:00:31]} 20. hxg3 {[%emt 0:00:21]} Nc4 {[%emt 0:00:39]} 21. Rb1 {[%emt 0:00:55]} e5 {[%emt 0:14:51]} 22. dxe5 {[%emt 0:03:48]} Nxe5 {[%emt 0:00:25]} 23. Nb3 {[%emt 0:03:21]} Ra6 {[%emt 0:14:37]} 24. Nd4 {[%emt 0:22:07]} Rf6 {[%emt 0:01:53]} 25. Rh1 {[%emt 0:03:55]} Rg8 {[%emt 0:09:20]} 26. f4 {[%emt 0:06:55]} Ng4+ {[%emt 0:11:14]} 27. Ke1 {[%emt 0:01:18]} gxf4 {[%emt 0:01:28]} 28. exf4 {[%emt 0:01:12]} Nh6 {[%emt 0:03:46]} 29. Rh3 {[%emt 0:02:45]} Ng4 {[%emt 0:02:08]} 30. Rh5 {[%emt 0:01:07]} Bc5 {[%emt 0:07:48]} 31. Kd2 {[%emt 0:01:04]} Nf2 {[%emt 0:04:15]} 32. Re5+ {[%emt 0:01:31]} Kf8 {[%emt 0:02:37]} 33. Rxd5 {[%emt 0:00:38]} Rxg3 {[%emt 0:01:30]} 34. Ne3 {[%emt 0:01:21]} Rxf4 {[%emt 0:01:49]} 35. Rd8+ {[%emt 0:01:23]} Ke7 {[%emt 0:00:54]} 36. Nef5+ {[%emt 0:00:51]} Kxd8 {[%emt 0:00:33]} 37. Nxg3 {[%emt 0:00:12]} Be7 {[%emt 0:07:05]} 38. Ndf5 {[%emt 0:01:40]} Bg5 {[%emt 0:00:54]} 39. Ke1 {[%emt 0:00:02]} d2+ {[%emt 0:04:13]} 40. Ke2 {[%emt 0:00:13]} d1=Q+ {[%emt 0:01:14]} 41. Rxd1+ {[%emt 0:30:02]} Nxd1 {[%emt 0:30:13]} 42. Kxd1 {[%emt 0:00:07]} Rf2 {[%emt 0:00:00]} 0-1